[Event "*** MasterClass Titled Tuesday Blitz"]
[Site "Chess.com"]
[Date "2017.10.03"]
[Round "10"]
[White "Tibmat"]
[Black "Mistheoretical"]
[Result "1-0"]
[WhiteElo "2405"]
[BlackElo "2202"]
[TimeControl "180+2"]
[EndTime "15:16:44 PDT"]
[Termination "Tibmat won on time"]

1. e4 {[%clk 0:03:01.9]} 1... e6 {[%clk 0:03:01.1]} 2. d4 {[%clk 0:03:01.8]}
2... d5 {[%clk 0:03:03]} 3. Nd2 {[%clk 0:03:03.7]} 3... Nf6 {[%clk 0:03:03.7]}
4. e5 {[%clk 0:03:04.9]} 4... Nfd7 {[%clk 0:03:05.3]} 5. Bd3 {[%clk 0:03:06.8]}
5... c5 {[%clk 0:03:07]} 6. c3 {[%clk 0:03:08.6]} 6... Nc6 {[%clk 0:03:08.5]} 7.
Ne2 {[%clk 0:03:10.2]} 7... cxd4 {[%clk 0:03:10.1]} 8. cxd4 {[%clk 0:03:12.1]}
8... f6 {[%clk 0:03:11.6]} 9. exf6 {[%clk 0:03:14]} 9... Nxf6 {[%clk 0:03:12.7]}
10. O-O {[%clk 0:03:15.5]} 10... Bd6 {[%clk 0:03:14.2]} 11. Nf3 {[%clk
0:03:16.9]} 11... Qc7 {[%clk 0:03:13.9]} 12. Nc3 {[%clk 0:03:12.9]} 12... a6
{[%clk 0:03:13.8]} 13. h3 {[%clk 0:03:10.9]} 13... O-O {[%clk 0:03:14.2]} 14.
Re1 {[%clk 0:03:12.5]} 14... h6 {[%clk 0:03:04.8]} 15. Bd2 {[%clk 0:03:09.4]}
15... g5 {[%clk 0:03:04.9]} 16. Rc1 {[%clk 0:03:03.2]} 16... Qg7 {[%clk
0:03:05.3]} 17. Na4 {[%clk 0:02:37.9]} 17... Bc7 {[%clk 0:01:06.2]} 18. Nc5
{[%clk 0:02:23.3]} 18... Qf7 {[%clk 0:00:45.9]} 19. Bxg5 {[%clk 0:01:45.2]}
19... hxg5 {[%clk 0:00:45.3]} 20. Nxg5 {[%clk 0:01:47.1]} 20... Qh5 {[%clk
0:00:30.5]} 21. Qxh5 {[%clk 0:01:30.2]} 21... Nxh5 {[%clk 0:00:32.4]} 22. Ncxe6
{[%clk 0:01:23.9]} 22... Bf4 {[%clk 0:00:12.4]} 23. Bh7+ {[%clk 0:01:00.5]}
23... Kh8 {[%clk 0:00:13.2]} 24. Nxf8 {[%clk 0:00:59.8]} 24... Bxg5 {[%clk
0:00:13]} 25. Rxc6 {[%clk 0:00:25.3]} 25... bxc6 {[%clk 0:00:11.3]} 26. Re5
{[%clk 0:00:26.7]} 26... Bh6 {[%clk 0:00:08.9]} 27. Rxh5 {[%clk 0:00:19.1]}
27... Bxf8 {[%clk 0:00:10.1]} 28. Bd3+ {[%clk 0:00:18]} 28... Kg8 {[%clk
0:00:09.4]} 29. Rg5+ {[%clk 0:00:18.2]} 29... Bg7 {[%clk 0:00:10.6]} 30. Rg6
{[%clk 0:00:15.6]} 30... Bd7 {[%clk 0:00:09.8]} 31. h4 {[%clk 0:00:12.9]} 31...
Be8 {[%clk 0:00:10.1]} 32. Rg4 {[%clk 0:00:11.6]} 32... Kf8 {[%clk 0:00:11.5]}
33. g3 {[%clk 0:00:11.7]} 33... a5 {[%clk 0:00:11.7]} 34. Rf4+ {[%clk
0:00:12.5]} 34... Ke7 {[%clk 0:00:10.5]} 35. g4 {[%clk 0:00:14]} 35... Bd7
{[%clk 0:00:06.9]} 36. g5 {[%clk 0:00:13.5]} 36... Rf8 {[%clk 0:00:07.2]} 37.
Rxf8 {[%clk 0:00:09.3]} 37... Kxf8 {[%clk 0:00:04.2]} 38. Kg2 {[%clk 0:00:11.2]}
38... Bh8 {[%clk 0:00:04.6]} 39. b3 {[%clk 0:00:13.1]} 39... Bxd4 {[%clk
0:00:05.3]} 40. f4 {[%clk 0:00:14.5]} 40... c5 {[%clk 0:00:04.6]} 41. f5 {[%clk
0:00:15.5]} 41... Ke7 {[%clk 0:00:03.5]} 42. Kf3 {[%clk 0:00:16.7]} 42... a4
{[%clk 0:00:02.7]} 43. f6+ {[%clk 0:00:16.2]} 43... Bxf6 {[%clk 0:00:02.1]} 44.
gxf6+ {[%clk 0:00:18.1]} 44... Kxf6 {[%clk 0:00:04]} 45. Kf4 {[%clk 0:00:19.5]}
45... axb3 {[%clk 0:00:05]} 46. axb3 {[%clk 0:00:21.1]} 46... Be8 {[%clk
0:00:04.7]} 47. Be2 {[%clk 0:00:21.5]} 47... Bf7 {[%clk 0:00:04]} 48. Bd1 {[%clk
0:00:22.8]} 48... c4 {[%clk 0:00:02.9]} 49. b4 {[%clk 0:00:17.9]} 49... d4
{[%clk 0:00:03.3]} 50. Ke4 {[%clk 0:00:18.9]} 50... d3 {[%clk 0:00:03.5]} 51.
Kd4 {[%clk 0:00:20.2]} 51... Kf5 {[%clk 0:00:02.4]} 52. b5 {[%clk 0:00:21.3]}
1-0

[Event "*** MasterClass Titled Tuesday Blitz"]
[Site "Chess.com"]
[Date "2017.10.03"]
[Round "10"]
[White "Gudmundur_Kjartansson"]
[Black "BillCoe"]
[Result "1-0"]
[WhiteElo "2326"]
[BlackElo "1982"]
[TimeControl "180+2"]
[EndTime "15:17:03 PDT"]
[Termination "Gudmundur_Kjartansson won by resignation"]

1. e4 {[%clk 0:03:01.9]} 1... c5 {[%clk 0:03:00.3]} 2. Nf3 {[%clk 0:03:00.9]}
2... e6 {[%clk 0:03:00.2]} 3. g3 {[%clk 0:02:59.8]} 3... g6 {[%clk 0:02:59.9]}
4. Bg2 {[%clk 0:02:59.6]} 4... Bg7 {[%clk 0:03:00.8]} 5. O-O {[%clk 0:03:01]}
5... Nc6 {[%clk 0:03:00.8]} 6. c3 {[%clk 0:03:02]} 6... Nge7 {[%clk 0:02:59]} 7.
d4 {[%clk 0:03:02.8]} 7... cxd4 {[%clk 0:02:59.5]} 8. cxd4 {[%clk 0:03:03.2]}
8... d5 {[%clk 0:03:00.4]} 9. e5 {[%clk 0:03:01.6]} 9... O-O {[%clk 0:03:00.4]}
10. Nc3 {[%clk 0:03:02.3]} 10... a6 {[%clk 0:02:59.8]} 11. Re1 {[%clk
0:02:53.3]} 11... b5 {[%clk 0:02:59.5]} 12. b3 {[%clk 0:02:50.4]} 12... Bd7
{[%clk 0:02:49.6]} 13. Ne2 {[%clk 0:02:47]} 13... a5 {[%clk 0:02:44.7]} 14. Nf4
{[%clk 0:02:46.8]} 14... a4 {[%clk 0:02:40.1]} 15. Nd3 {[%clk 0:02:41.5]} 15...
axb3 {[%clk 0:02:35.2]} 16. Qxb3 {[%clk 0:02:42.5]} 16... Qb6 {[%clk 0:02:31.5]}
17. Bb2 {[%clk 0:02:08.7]} 17... Na5 {[%clk 0:02:24.2]} 18. Qb4 {[%clk
0:02:09.4]} 18... Nec6 {[%clk 0:02:24.5]} 19. Qc5 {[%clk 0:02:07.1]} 19... Rab8
{[%clk 0:02:18.4]} 20. Qxb6 {[%clk 0:02:07.5]} 20... Rxb6 {[%clk 0:02:18.1]} 21.
Nc5 {[%clk 0:02:08.4]} 21... Bc8 {[%clk 0:02:12.2]} 22. a4 {[%clk 0:01:54.3]}
22... Nc4 {[%clk 0:02:13.2]} 23. axb5 {[%clk 0:01:51.5]} 23... Rxb5 {[%clk
0:02:05.1]} 24. Bc3 {[%clk 0:01:51.9]} 24... Rd8 {[%clk 0:01:58.5]} 25. Reb1
{[%clk 0:01:51.3]} 25... Rxb1+ {[%clk 0:01:56.9]} 26. Rxb1 {[%clk 0:01:52.1]}
26... Bf8 {[%clk 0:01:54.5]} 27. Nd3 {[%clk 0:01:39]} 27... Bd7 {[%clk
0:01:43.1]} 28. Bf1 {[%clk 0:01:38.1]} 28... Rb8 {[%clk 0:01:37.9]} 29. Rxb8
{[%clk 0:01:38.3]} 29... Nxb8 {[%clk 0:01:39.8]} 30. Nb4 {[%clk 0:01:37.1]}
30... Bxb4 {[%clk 0:01:32.7]} 31. Bxb4 {[%clk 0:01:37.8]} 31... Nc6 {[%clk
0:01:26.2]} 32. Bc5 {[%clk 0:01:38.3]} 32... N6a5 {[%clk 0:01:23.3]} 33. g4
{[%clk 0:01:35.4]} 33... h6 {[%clk 0:01:21.1]} 34. h4 {[%clk 0:01:34.3]} 34...
Nb3 {[%clk 0:01:17]} 35. Ba7 {[%clk 0:01:32.1]} 35... Nbd2 {[%clk 0:01:11.2]}
36. Nxd2 {[%clk 0:01:30.8]} 36... Nxd2 {[%clk 0:01:10.7]} 37. Be2 {[%clk
0:01:32.3]} 37... Nb3 {[%clk 0:01:05.9]} 38. Bb6 {[%clk 0:01:27.8]} 38... Kf8
{[%clk 0:01:01.3]} 39. f3 {[%clk 0:01:20.6]} 39... Nd2 {[%clk 0:00:57.2]} 40.
Kf2 {[%clk 0:01:19.5]} 40... Bc6 {[%clk 0:00:50.4]} 41. Bc5+ {[%clk 0:01:16.4]}
41... Ke8 {[%clk 0:00:46.8]} 42. Ke3 {[%clk 0:01:15.1]} 42... Nc4+ {[%clk
0:00:47]} 43. Kd3 {[%clk 0:01:16.1]} 43... Na5 {[%clk 0:00:44.8]} 44. Kc3 {[%clk
0:01:14.4]} 44... Nb7 {[%clk 0:00:43.1]} 45. Bb6 {[%clk 0:01:13.5]} 45... Nd8
{[%clk 0:00:42]} 46. Kb4 {[%clk 0:01:13.8]} 46... Kd7 {[%clk 0:00:42.1]} 47. f4
{[%clk 0:01:11.4]} 47... Nb7 {[%clk 0:00:38.2]} 48. Bd3 {[%clk 0:01:06.4]} 48...
Ke8 {[%clk 0:00:37.2]} 49. h5 {[%clk 0:01:03.8]} 49... gxh5 {[%clk 0:00:35.3]}
50. gxh5 {[%clk 0:01:04.3]} 50... Kf8 {[%clk 0:00:36]} 51. f5 {[%clk 0:00:56.7]}
51... Be8 {[%clk 0:00:33.8]} 52. f6 {[%clk 0:00:52.4]} 52... Bd7 {[%clk
0:00:28.9]} 53. Bc7 {[%clk 0:00:49]} 53... Ke8 {[%clk 0:00:28.8]} 54. Be2 {[%clk
0:00:39.4]} 54... Nd8 {[%clk 0:00:28.5]} 55. Bd6 {[%clk 0:00:33.9]} 55... Nc6+
{[%clk 0:00:25.4]} 56. Kc3 {[%clk 0:00:34.5]} 56... Na5 {[%clk 0:00:24]} 57. Ba3
{[%clk 0:00:28.3]} 57... Nb7 {[%clk 0:00:12.4]} 58. Bc1 {[%clk 0:00:26.6]} 58...
Bb5 {[%clk 0:00:10.7]} 59. Bxb5+ {[%clk 0:00:26.2]} 1-0

[Event "*** MasterClass Titled Tuesday Blitz"]
[Site "Chess.com"]
[Date "2017.10.03"]
[Round "10"]
[White "Angry_Serb"]
[Black "timator"]
[Result "0-1"]
[WhiteElo "2395"]
[BlackElo "2422"]
[TimeControl "180+2"]
[EndTime "15:17:10 PDT"]
[Termination "timator won by resignation"]

1. e4 {[%clk 0:03:01.9]} 1... c5 {[%clk 0:03:00.6]} 2. Nc3 {[%clk 0:02:55.7]}
2... Nc6 {[%clk 0:02:59.8]} 3. Bb5 {[%clk 0:02:56.8]} 3... Nd4 {[%clk
0:03:00.1]} 4. Nf3 {[%clk 0:02:58.2]} 4... Nxb5 {[%clk 0:03:00.3]} 5. Nxb5
{[%clk 0:03:00.1]} 5... a6 {[%clk 0:02:58.1]} 6. Nc3 {[%clk 0:03:00.9]} 6... g6
{[%clk 0:02:59.2]} 7. d4 {[%clk 0:03:02.5]} 7... cxd4 {[%clk 0:03:00.4]} 8. Qxd4
{[%clk 0:03:03.2]} 8... Nf6 {[%clk 0:02:57.8]} 9. e5 {[%clk 0:03:04.6]} 9... Nh5
{[%clk 0:02:36.9]} 10. Ne4 {[%clk 0:02:02.3]} 10... Ng7 {[%clk 0:02:34.2]} 11.
Bd2 {[%clk 0:01:33.7]} 11... Ne6 {[%clk 0:02:33.3]} 12. Qd5 {[%clk 0:01:29.8]}
12... Bg7 {[%clk 0:02:19.8]} 13. O-O-O {[%clk 0:01:30.5]} 13... Qc7 {[%clk
0:02:20.9]} 14. h4 {[%clk 0:01:25]} 14... h6 {[%clk 0:02:19.4]} 15. Rhe1 {[%clk
0:01:16.1]} 15... Qc6 {[%clk 0:02:20]} 16. Qb3 {[%clk 0:01:14.3]} 16... b5
{[%clk 0:02:17.9]} 17. Ba5 {[%clk 0:00:57.2]} 17... Bb7 {[%clk 0:02:13.4]} 18.
Kb1 {[%clk 0:00:56.4]} 18... Rc8 {[%clk 0:02:03.8]} 19. c3 {[%clk 0:00:52.6]}
19... Qc4 {[%clk 0:01:51.7]} 20. Qc2 {[%clk 0:00:51.9]} 20... Qc6 {[%clk
0:01:19.3]} 21. h5 {[%clk 0:00:38.8]} 21... g5 {[%clk 0:01:19.8]} 22. g3 {[%clk
0:00:30.7]} 22... O-O {[%clk 0:01:09.4]} 23. Re3 {[%clk 0:00:31.7]} 23... Nc5
{[%clk 0:00:58.9]} 24. Nxc5 {[%clk 0:00:29]} 24... Qxc5 {[%clk 0:01:00.8]} 25.
Bb4 {[%clk 0:00:23.9]} 25... Qb6 {[%clk 0:00:48.2]} 26. Bxe7 {[%clk 0:00:22.7]}
26... Rfe8 {[%clk 0:00:49.2]} 27. Bd6 {[%clk 0:00:16]} 27... b4 {[%clk
0:00:49.3]} 28. Bxb4 {[%clk 0:00:16.2]} 28... Bxf3 {[%clk 0:00:41.9]} 29. Rxf3
{[%clk 0:00:18.1]} 29... Bxe5 {[%clk 0:00:41.2]} 30. Rxd7 {[%clk 0:00:15.8]}
30... Bg7 {[%clk 0:00:39.6]} 31. Qd3 {[%clk 0:00:13.4]} 31... Re1+ {[%clk
0:00:26.2]} 32. Kc2 {[%clk 0:00:14.6]} 32... Qxb4 {[%clk 0:00:27.3]} 33. Rd8+
{[%clk 0:00:07.5]} 33... Rxd8 {[%clk 0:00:26.8]} 34. Qxd8+ {[%clk 0:00:09.4]}
34... Qf8 {[%clk 0:00:28]} 35. Qd5 {[%clk 0:00:09.2]} 35... Re6 {[%clk
0:00:28.5]} 36. a4 {[%clk 0:00:08.7]} 36... Rf6 {[%clk 0:00:29.9]} 37. b4 {[%clk
0:00:07.5]} 37... Rxf3 {[%clk 0:00:30.5]} 38. Qxf3 {[%clk 0:00:09.4]} 38... Qc8
{[%clk 0:00:31.5]} 39. Kb3 {[%clk 0:00:10.4]} 39... Qe6+ {[%clk 0:00:32.3]} 40.
Kb2 {[%clk 0:00:12]} 40... Qc4 {[%clk 0:00:31.1]} 41. Kc2 {[%clk 0:00:11.2]}
41... Qa2+ {[%clk 0:00:29.8]} 42. Kd3 {[%clk 0:00:12.6]} 42... Qb1+ {[%clk
0:00:30.3]} 43. Kc4 {[%clk 0:00:13.2]} 43... Qa2+ {[%clk 0:00:31.1]} 44. Kc5
{[%clk 0:00:14.3]} 44... Bf8+ {[%clk 0:00:30.3]} 45. Kb6 {[%clk 0:00:13.2]}
45... Qxa4 {[%clk 0:00:31.5]} 46. Qd5 {[%clk 0:00:13.3]} 46... Qc2 {[%clk
0:00:25.7]} 47. Kxa6 {[%clk 0:00:12.8]} 47... Qxc3 {[%clk 0:00:26.4]} 48. b5
{[%clk 0:00:12.7]} 48... Qa3+ {[%clk 0:00:26.6]} 49. Kb7 {[%clk 0:00:14.1]}
49... Qc5 {[%clk 0:00:24.9]} 50. Qxc5 {[%clk 0:00:10.3]} 50... Bxc5 {[%clk
0:00:25.7]} 51. f3 {[%clk 0:00:12.2]} 51... Kg7 {[%clk 0:00:21.3]} 52. Kc7
{[%clk 0:00:10.1]} 52... Bf2 {[%clk 0:00:21.6]} 53. g4 {[%clk 0:00:10.6]} 53...
Kf6 {[%clk 0:00:23]} 54. Kd6 {[%clk 0:00:07.2]} 54... Bb6 {[%clk 0:00:23.3]} 55.
Kc6 {[%clk 0:00:07.3]} 55... Ba5 {[%clk 0:00:24.3]} 56. Kd6 {[%clk 0:00:07.9]}
56... Bb6 {[%clk 0:00:24]} 57. Kc6 {[%clk 0:00:08.5]} 57... Bg1 {[%clk
0:00:25.9]} 58. Kd6 {[%clk 0:00:07.7]} 58... Bf2 {[%clk 0:00:27.5]} 59. Kd5
{[%clk 0:00:06.4]} 59... Ke7 {[%clk 0:00:28.8]} 60. Kc6 {[%clk 0:00:06.5]} 60...
Ke6 {[%clk 0:00:29.5]} 61. b6 {[%clk 0:00:06.4]} 61... Bxb6 {[%clk 0:00:30.1]}
62. Kxb6 {[%clk 0:00:08.3]} 62... Ke5 {[%clk 0:00:31.8]} 63. Kc6 {[%clk
0:00:09.9]} 63... Kf4 {[%clk 0:00:33.7]} 64. Kd6 {[%clk 0:00:11.7]} 64... Kxf3
{[%clk 0:00:35.4]} 65. Ke5 {[%clk 0:00:13.4]} 65... Kxg4 {[%clk 0:00:36.9]} 66.
Kf6 {[%clk 0:00:15.3]} 66... Kxh5 {[%clk 0:00:38.8]} 0-1

[Event "*** MasterClass Titled Tuesday Blitz"]
[Site "Chess.com"]
[Date "2017.10.03"]
[Round "10"]
[White "Too_Stupid_To_Play"]
[Black "Laico"]
[Result "0-1"]
[WhiteElo "2155"]
[BlackElo "2130"]
[TimeControl "180+2"]
[EndTime "15:17:22 PDT"]
[Termination "Laico won by resignation"]

1. Nf3 {[%clk 0:02:54.1]} 1... e6 {[%clk 0:02:53.5]} 2. c4 {[%clk 0:02:55.3]}
2... f5 {[%clk 0:02:46.8]} 3. b3 {[%clk 0:02:54.5]} 3... b6 {[%clk 0:02:34.3]}
4. Bb2 {[%clk 0:02:52.4]} 4... Bb7 {[%clk 0:02:36.2]} 5. d3 {[%clk 0:02:52.5]}
5... Nf6 {[%clk 0:02:37.7]} 6. g3 {[%clk 0:02:53.2]} 6... Be7 {[%clk 0:02:39]}
7. Bg2 {[%clk 0:02:54.8]} 7... O-O {[%clk 0:02:40.9]} 8. O-O {[%clk 0:02:56.1]}
8... Qe8 {[%clk 0:02:42.5]} 9. Nbd2 {[%clk 0:02:56.3]} 9... Qh5 {[%clk
0:02:43.4]} 10. Re1 {[%clk 0:02:50.8]} 10... d6 {[%clk 0:02:43.5]} 11. e4 {[%clk
0:02:51]} 11... fxe4 {[%clk 0:02:44.4]} 12. Nxe4 {[%clk 0:02:48.5]} 12... Nxe4
{[%clk 0:02:44.8]} 13. dxe4 {[%clk 0:02:49.3]} 13... e5 {[%clk 0:02:46]} 14. Nd2
{[%clk 0:02:26.3]} 14... Qg6 {[%clk 0:02:41.8]} 15. Nf1 {[%clk 0:02:21.4]} 15...
Nd7 {[%clk 0:02:42]} 16. Ne3 {[%clk 0:02:20]} 16... Nf6 {[%clk 0:02:27.5]} 17.
Nf5 {[%clk 0:01:50.1]} 17... Rae8 {[%clk 0:02:26.9]} 18. f3 {[%clk 0:01:48.4]}
18... Nd7 {[%clk 0:02:24.8]} 19. Qc2 {[%clk 0:01:14.1]} 19... Nc5 {[%clk
0:02:23.1]} 20. b4 {[%clk 0:01:12.6]} 20... Ne6 {[%clk 0:02:23.4]} 21. Rad1
{[%clk 0:01:11.7]} 21... Kh8 {[%clk 0:02:16.7]} 22. Qc3 {[%clk 0:01:01.6]} 22...
Bg5 {[%clk 0:02:15.9]} 23. Rd3 {[%clk 0:00:43.5]} 23... Bd8 {[%clk 0:02:10.6]}
24. Red1 {[%clk 0:00:42.7]} 24... Bg5 {[%clk 0:02:08.6]} 25. a4 {[%clk
0:00:40.8]} 25... Bc8 {[%clk 0:02:08.9]} 26. Bh3 {[%clk 0:00:35.3]} 26... Nd4
{[%clk 0:01:58.3]} 27. Rxd4 {[%clk 0:00:28.4]} 27... exd4 {[%clk 0:01:58.8]} 28.
Qxd4 {[%clk 0:00:28.8]} 28... Bf6 {[%clk 0:01:59.8]} 29. Qd2 {[%clk 0:00:27.9]}
29... Bxb2 {[%clk 0:02:01.7]} 30. Qxb2 {[%clk 0:00:29.1]} 30... Qf6 {[%clk
0:01:57.6]} 31. Qxf6 {[%clk 0:00:23.5]} 31... Rxf6 {[%clk 0:01:59.5]} 32. Bg2
{[%clk 0:00:22.6]} 32... Bxf5 {[%clk 0:01:59.4]} 33. exf5 {[%clk 0:00:23.2]}
33... Rxf5 {[%clk 0:01:58.1]} 34. f4 {[%clk 0:00:23.5]} 34... Rf7 {[%clk
0:01:56.9]} 35. Kf2 {[%clk 0:00:22.8]} 35... Rfe7 {[%clk 0:01:56.5]} 36. Rd2
{[%clk 0:00:24.3]} 36... Re3 {[%clk 0:01:56.2]} 37. Bc6 {[%clk 0:00:25.1]} 37...
R8e7 {[%clk 0:01:57.1]} 38. c5 {[%clk 0:00:22]} 38... R3e6 {[%clk 0:01:44.6]}
39. Bd5 {[%clk 0:00:21.3]} 39... Rf6 {[%clk 0:01:45.4]} 40. cxb6 {[%clk
0:00:18.4]} 40... cxb6 {[%clk 0:01:43.3]} 41. a5 {[%clk 0:00:19.9]} 41... g6
{[%clk 0:01:39.2]} 42. axb6 {[%clk 0:00:19.7]} 42... axb6 {[%clk 0:01:41.1]} 43.
Rc2 {[%clk 0:00:20]} 43... Rf5 {[%clk 0:01:34.1]} 44. Rc8+ {[%clk 0:00:19]}
44... Kg7 {[%clk 0:01:34.2]} 45. Bc6 {[%clk 0:00:20.1]} 45... Rf8 {[%clk
0:01:17.8]} 46. Rxf8 {[%clk 0:00:14.8]} 46... Kxf8 {[%clk 0:01:19.7]} 47. b5
{[%clk 0:00:16]} 47... Rf7 {[%clk 0:01:13.1]} 48. Kf3 {[%clk 0:00:17.9]} 48...
Rf5 {[%clk 0:01:10.1]} 49. Ke4 {[%clk 0:00:18.1]} 49... Rc5 {[%clk 0:01:10.6]}
50. g4 {[%clk 0:00:18.6]} 50... Ke7 {[%clk 0:01:11.7]} 51. h4 {[%clk 0:00:19.7]}
51... Rc1 {[%clk 0:01:05.2]} 52. Kf3 {[%clk 0:00:14.3]} 52... Rc3+ {[%clk
0:01:03]} 53. Ke4 {[%clk 0:00:15.1]} 53... Rh3 {[%clk 0:01:03]} 54. h5 {[%clk
0:00:12.9]} 54... gxh5 {[%clk 0:01:03.1]} 55. gxh5 {[%clk 0:00:14.5]} 55... Rxh5
{[%clk 0:01:03.8]} 56. f5 {[%clk 0:00:16.1]} 56... Rh4+ {[%clk 0:00:59.2]} 57.
Kd5 {[%clk 0:00:17.4]} 57... Rf4 {[%clk 0:01:00]} 58. f6+ {[%clk 0:00:16.2]}
58... Rxf6 {[%clk 0:00:58.6]} 59. Bb7 {[%clk 0:00:16.8]} 59... h5 {[%clk
0:00:49.5]} 60. Kc6 {[%clk 0:00:18.1]} 60... h4 {[%clk 0:00:50.6]} 61. Kxb6
{[%clk 0:00:19.4]} 61... h3 {[%clk 0:00:50.6]} 62. Ka7 {[%clk 0:00:19.3]} 62...
h2 {[%clk 0:00:50.3]} 63. b6 {[%clk 0:00:20.7]} 63... Rf1 {[%clk 0:00:49.1]} 64.
Bd5 {[%clk 0:00:19.4]} 64... Ra1+ {[%clk 0:00:48]} 65. Kb8 {[%clk 0:00:20.3]}
65... h1=Q {[%clk 0:00:48.1]} 66. Bxh1 {[%clk 0:00:20.7]} 66... Rxh1 {[%clk
0:00:49.4]} 67. b7 {[%clk 0:00:22.6]} 67... d5 {[%clk 0:00:47.1]} 68. Ka8 {[%clk
0:00:19.6]} 68... Ra1+ {[%clk 0:00:47.1]} 69. Kb8 {[%clk 0:00:20.2]} 69... d4
{[%clk 0:00:48.4]} 70. Kc7 {[%clk 0:00:22.1]} 70... Rc1+ {[%clk 0:00:47.9]} 71.
Kb6 {[%clk 0:00:22.8]} 71... d3 {[%clk 0:00:47.9]} 72. Ka5 {[%clk 0:00:22.6]}
72... d2 {[%clk 0:00:46.3]} 73. b8=Q {[%clk 0:00:23]} 73... Ra1+ {[%clk
0:00:47]} 0-1

[Event "*** MasterClass Titled Tuesday Blitz"]
[Site "Chess.com"]
[Date "2017.10.03"]
[Round "10"]
[White "lukas_111111"]
[Black "Alexander_Moskalenko"]
[Result "0-1"]
[WhiteElo "2379"]
[BlackElo "2654"]
[TimeControl "180+2"]
[EndTime "15:17:24 PDT"]
[Termination "Alexander_Moskalenko won on time"]

1. e4 {[%clk 0:03:01.9]} 1... d6 {[%clk 0:03:01.2]} 2. d4 {[%clk 0:03:01.6]}
2... Nf6 {[%clk 0:03:02.6]} 3. Nc3 {[%clk 0:03:01.7]} 3... e5 {[%clk 0:03:04.1]}
4. dxe5 {[%clk 0:03:00.9]} 4... dxe5 {[%clk 0:03:05.3]} 5. Qxd8+ {[%clk
0:03:02.2]} 5... Kxd8 {[%clk 0:03:07.2]} 6. Bc4 {[%clk 0:03:03.2]} 6... Be6
{[%clk 0:03:06.6]} 7. Bxe6 {[%clk 0:03:03.2]} 7... fxe6 {[%clk 0:03:08.5]} 8. f3
{[%clk 0:03:01.8]} 8... Bd6 {[%clk 0:03:09.5]} 9. Nh3 {[%clk 0:03:01.7]} 9...
Nbd7 {[%clk 0:03:09.4]} 10. Nf2 {[%clk 0:03:02.2]} 10... Ke7 {[%clk 0:03:10.8]}
11. Nd3 {[%clk 0:03:02.8]} 11... h6 {[%clk 0:03:09.1]} 12. Be3 {[%clk
0:03:00.4]} 12... a6 {[%clk 0:03:10.2]} 13. a4 {[%clk 0:03:00.1]} 13... g5
{[%clk 0:03:11.5]} 14. Nb1 {[%clk 0:02:45.5]} 14... g4 {[%clk 0:02:22.1]} 15.
Nd2 {[%clk 0:02:44.5]} 15... gxf3 {[%clk 0:02:23.1]} 16. gxf3 {[%clk 0:02:43.7]}
16... Rag8 {[%clk 0:02:24.3]} 17. Nc4 {[%clk 0:02:36.4]} 17... Rg2 {[%clk
0:02:14.3]} 18. O-O-O {[%clk 0:02:36.1]} 18... b5 {[%clk 0:02:15.3]} 19. Nxd6
{[%clk 0:02:22.8]} 19... cxd6 {[%clk 0:02:15.9]} 20. Nb4 {[%clk 0:02:20.8]}
20... Rc8 {[%clk 0:01:51.5]} 21. a5 {[%clk 0:02:21.1]} 21... Nb8 {[%clk
0:01:52.4]} 22. Rhg1 {[%clk 0:02:08.4]} 22... Rxh2 {[%clk 0:01:26]} 23. Rg7+
{[%clk 0:02:08.1]} 23... Kf8 {[%clk 0:01:27.4]} 24. Rdg1 {[%clk 0:00:58.1]}
24... Nc6 {[%clk 0:01:15]} 25. Nxa6 {[%clk 0:00:58.6]} 25... Nxa5 {[%clk
0:01:15.2]} 26. Nc7 {[%clk 0:00:57]} 26... Nc4 {[%clk 0:00:48.2]} 27. Nxe6+
{[%clk 0:00:56.3]} 27... Ke8 {[%clk 0:00:49]} 28. Nc7+ {[%clk 0:00:30.7]} 28...
Rxc7 {[%clk 0:00:30.6]} 29. Rxc7 {[%clk 0:00:30.9]} 29... Nxe3 {[%clk
0:00:32.1]} 30. Rg6 {[%clk 0:00:20.9]} 30... Nc4 {[%clk 0:00:17]} 31. Kb1 {[%clk
0:00:17.7]} 31... Nd7 {[%clk 0:00:14.4]} 32. Rg8+ {[%clk 0:00:17.5]} 32... Kf7
{[%clk 0:00:15]} 33. Rd8 {[%clk 0:00:17.2]} 33... Nb6 {[%clk 0:00:16.4]} 34.
Rdxd7+ {[%clk 0:00:10.7]} 34... Nxd7 {[%clk 0:00:18.3]} 35. Rxd7+ {[%clk
0:00:11.8]} 35... Ke6 {[%clk 0:00:20.2]} 36. Rh7 {[%clk 0:00:12.5]} 36... d5
{[%clk 0:00:17.3]} 37. exd5+ {[%clk 0:00:12.4]} 37... Kxd5 {[%clk 0:00:19.2]}
38. Rd7+ {[%clk 0:00:09.1]} 38... Kc5 {[%clk 0:00:19.4]} 39. Rc7+ {[%clk
0:00:08.2]} 39... Kd4 {[%clk 0:00:20.5]} 40. Re7 {[%clk 0:00:07.7]} 40... Rh3
{[%clk 0:00:20.6]} 41. c3+ {[%clk 0:00:07.8]} 41... Kd5 {[%clk 0:00:20.3]} 42.
Rd7+ {[%clk 0:00:09]} 42... Ke6 {[%clk 0:00:20.8]} 43. Rh7 {[%clk 0:00:10]}
43... Kf5 {[%clk 0:00:19.9]} 44. Rf7+ {[%clk 0:00:10.4]} 44... Kg6 {[%clk
0:00:20.8]} 45. Rf8 {[%clk 0:00:10.6]} 45... h5 {[%clk 0:00:21.4]} 46. Kc2
{[%clk 0:00:11.1]} 46... Rh2+ {[%clk 0:00:22]} 47. Kb3 {[%clk 0:00:10.4]} 47...
h4 {[%clk 0:00:23.4]} 48. Re8 {[%clk 0:00:08.7]} 48... Kf6 {[%clk 0:00:20.8]}
49. Rf8+ {[%clk 0:00:09.9]} 49... Kg5 {[%clk 0:00:21.8]} 50. Rb8 {[%clk
0:00:05.4]} 50... h3 {[%clk 0:00:20.6]} 51. Rxb5 {[%clk 0:00:06.4]} 51... Kf4
{[%clk 0:00:22.2]} 52. Kc4 {[%clk 0:00:06.3]} 52... Rd2 {[%clk 0:00:18.1]} 53.
Rb8 {[%clk 0:00:06.2]} 53... h2 {[%clk 0:00:18.4]} 54. Rf8+ {[%clk 0:00:07.2]}
54... Kg3 {[%clk 0:00:19]} 55. Rh8 {[%clk 0:00:08.3]} 55... Kxf3 {[%clk
0:00:17.2]} 56. b4 {[%clk 0:00:08.3]} 56... e4 {[%clk 0:00:18.6]} 57. Rf8+
{[%clk 0:00:04.9]} 57... Kg2 {[%clk 0:00:19.2]} 58. Rg8+ {[%clk 0:00:06]} 58...
Kf1 {[%clk 0:00:20.5]} 59. Rh8 {[%clk 0:00:05.6]} 59... e3 {[%clk 0:00:21.9]}
60. b5 {[%clk 0:00:02.4]} 60... Kg1 {[%clk 0:00:22.5]} 61. Rg8+ {[%clk
0:00:02.9]} 61... Rg2 {[%clk 0:00:23.1]} 0-1